bitfinex/quotes_ETHUSD_20240707
["timestamp","ask_amount","ask_price","bid_price","bid_amount"]
[1720324697127,0.68599733,3057.3,3057.2,4.57934]
[1720324698908,1.37194167,3057.5,3057.3,2.2896]
[1720324699131,2.55953089,3057.4,3057.3,2.2896]
[1720324699326,6.60614549,3057.4,3057.2,2.28967]
[1720324699537,2.62509541,3057.3,3056.9,2.28983]
[1720324699740,1.02912899,3057.0,3056.9,2.28983]
[1720324699939,2.50470661,3057.0,3056.9,2.28983]
[1720324700148,3.93191764,3057.0,3056.9,2.28983]
[1720324700915,1.13253463,3057.0,3056.9,2.28983]
[1720324701121,1.13253463,3057.0,3056.9,0.08172658]
[1720324701322,1.13253463,3057.0,3056.7,5.29]
[1720324701634,1.4377365,3057.1,3056.8,0.08179545]
[1720324701853,1.02913882,3056.9,3056.7,5.29]
[1720324702169,0.68610229,3056.8,3056.7,5.29]
[1720324702825,1.02915344,3056.9,3056.8,2.28997]
[1720324703249,2.16186464,3056.9,3056.8,2.28997]
[1720324704224,1.1327112,3056.9,3056.8,2.28997]
[1720324704769,1.02934008,3056.9,3056.8,2.28997]
[1720324705769,1.13270179,3056.9,3056.8,2.28997]
[1720324706260,2.16207135,3056.9,3056.8,2.28997]
[1720324706439,1.37220459,3057.0,3056.8,2.28997]
[1720324707364,1.13270349,3056.9,3056.8,2.28997]
[1720324707739,2.55992575,3056.9,3056.8,2.37178107]
[1720324707967,2.62549027,3056.9,3056.8,0.08181107]
[1720324708288,4.91276552,3056.9,3056.7,2.29]
[1720324708434,3.93285718,3056.8,3056.7,2.29]
[1720324708951,3.9984217,3056.8,3056.7,2.29]
[1720324710786,4.34143935,3056.8,3056.5,2.29018]
[1720324710942,3.93283776,3056.7,3056.5,2.29018]
[1720324711141,3.93283776,3056.6,3056.5,2.29018]
[1720324712075,3.93310826,3056.6,3056.5,2.2902]
[1720324713180,2.80027718,3056.6,3056.5,2.2902]
[1720324713584,3.93309175,3056.6,3056.4,2.29024]
[1720324713752,1.37291002,3056.6,3056.4,2.29024]
[1720324713946,1.02969504,3056.5,3056.4,2.29024]
[1720324714346,1.37291002,3056.6,3056.4,2.29024]
[1720324714547,1.02973709,3056.5,3056.4,2.29024]
[1720324714979,1.37298279,3056.6,3056.4,2.29024]
[1720324715343,1.4273679,3056.5,3056.4,2.29024]
[1720324715543,1.37298279,3056.6,3056.4,2.29024]
[1720324715981,1.37298279,3056.6,3056.5,2.2902]
[1720324716172,2.80033431,3056.6,3056.5,2.37225497]
[1720324717356,1.42735152,3056.6,3056.5,2.37225497]
[1720324717781,1.37298279,3056.6,3056.5,2.37225497]
[1720324718096,2.80033062,3056.7,3056.5,2.37225497]
[1720324718261,2.80033062,3056.6,3056.5,2.37225497]
[1720324718461,1.37298279,3056.7,3056.5,2.37225497]
[1720324718657,1.37298279,3056.7,3056.6,2.29012]
[1720324718859,1.42731605,3056.7,3056.6,2.37214233]
[1720324719072,1.02943612,3056.7,3056.6,2.37214233]
[1720324720631,1.02934709,3056.8,3056.7,4.5801]
[1720324720980,1.37298279,3057.0,3056.9,2.2899]
[1720324721298,1.71551108,3057.2,3057.0,2.28981]
[1720324721502,4.27534191,3057.1,3057.0,2.28981]
[1720324721802,2.55985158,3057.1,3057.0,2.37168576]
[1720324722423,3.93222186,3057.1,3057.0,2.37168576]
[1720324722720,1.13263657,3057.1,3057.0,2.37168576]
[1720324722911,2.79946822,3057.1,3057.0,2.37168576]
[1720324723118,3.93208926,3057.1,3057.0,2.37168576]
[1720324723699,2.79946822,3057.1,3057.0,2.37168576]
[1720324723880,3.93210966,3057.1,3057.0,2.37168576]
[1720324724310,2.7995052,3057.1,3057.0,2.37168576]
[1720324724511,3.93215196,3057.1,3057.0,0.08187576]
[1720324724724,3.93215196,3057.1,3056.4,2.29023]
[1720324724725,3.01137297,3057.1,3056.8,2.28997]
[1720324725026,1.37280363,3056.9,3056.8,2.28997]
[1720324725190,2.79996975,3056.9,3056.8,2.28997]
[1720324725390,3.93269915,3056.9,3056.8,2.28997]
[1720324725824,2.55989552,3056.9,3056.8,2.28997]
[1720324726692,4.27583384,3056.9,3056.8,2.28997]
[1720324726888,2.55989552,3056.9,3056.8,2.28997]
[1720324727498,2.55989552,3056.9,3056.8,4.57994]
[1720324727707,1.0297217,3056.9,3056.8,3.196994]
[1720324727993,1.37296227,3057.1,3057.0,4.57964]
[1720324728193,3.93265837,3057.1,3057.0,4.57964]
[1720324728435,1.42708768,3057.1,3057.0,4.57964]
[1720324728620,3.93265811,3057.1,3057.0,4.57964]
[1720324728826,1.42708768,3057.1,3057.0,4.57964]
[1720324729338,2.55968854,3057.1,3057.0,4.57964]
[1720324730126,1.42708768,3057.1,3057.0,4.57964]
[1720324730339,2.55968332,3057.1,3057.0,4.57964]
[1720324730542,3.93263149,3057.1,3057.0,4.57964]
[1720324730718,2.55966922,3057.1,3057.0,4.57964]
[1720324730919,1.37296227,3057.2,3057.1,2.28975]
[1720324731120,3.93263545,3057.2,3057.1,2.37149546]
[1720324731425,4.27585452,3057.2,3057.1,2.37149546]
[1720324732471,4.27585452,3057.2,3057.1,0.08174546]
[1720324732472,4.70377483,3057.2,3057.1,0.08174546]
[1720324732637,5.34417725,3057.2,3057.1,0.08174546]
[1720324732833,5.40974177,3057.2,3056.8,2.28995]
[1720324733033,2.84994997,3057.2,3057.1,0.08169273]
[1720324733247,8.25557717,3057.2,3056.8,2.28995]
[1720324733425,2.84994997,3057.2,3057.1,0.08169273]
[1720324733629,8.25557078,3057.2,3056.8,2.28995]
[1720324733863,2.84994997,3057.2,3057.1,0.08169273]
[1720324734060,2.84994997,3057.2,3056.8,2.28995]
[1720324734222,3.48951034,3057.2,3057.1,0.08169273]
[1720324734424,7.76232931,3057.2,3056.8,2.28995]
[1720324734746,1.37327107,3056.9,3056.8,2.28995]
[1720324734948,2.55992596,3056.9,3056.8,2.37175557]
[1720324735470,4.2765148,3056.9,3056.8,2.37175557]
[1720324735781,2.5599825,3056.9,3056.8,2.37175557]
[1720324736372,4.27664006,3056.9,3056.8,2.37175557]
[1720324736753,3.93328318,3056.9,3056.8,2.37175557]
[1720324736970,2.5599825,3056.9,3056.8,2.37175557]
[1720324737466,0.06556452,3057.1,3056.8,2.37175557]
[1720324737770,4.27661722,3057.0,3056.8,2.37175557]
[1720324737942,3.93328078,3056.9,3056.8,2.37175557]
[1720324738543,3.93332925,3056.9,3056.8,2.37175557]
[1720324738744,2.5599575,3056.9,3056.8,2.37175557]
[1720324740263,0.06556452,3057.1,3056.8,2.37175557]
[1720324740469,4.27673753,3057.0,3056.8,2.37175557]
[1720324740669,1.42724353,3056.9,3056.8,2.37175557]
[1720324740852,2.55997649,3056.9,3056.8,2.37175557]
[1720324741059,0.06556452,3057.1,3056.8,2.37175557]
[1720324741261,1.13273458,3056.9,3056.8,2.37175557]
[1720324741435,2.55998015,3056.9,3056.8,2.37175557]
[1720324741787,4.27670501,3056.9,3056.8,2.37175557]
[1720324742198,4.27670547,3056.9,3056.8,2.37175557]
[1720324742399,2.55998061,3056.9,3056.8,2.37175557]
[1720324743689,4.27670547,3056.9,3056.8,2.37175557]
[1720324745467,2.55998061,3056.9,3056.8,2.37175557]
[1720324746384,2.12563435,3057.1,3056.8,2.37175557]
[1720324746385,0.06556452,3057.1,3056.8,2.37175557]
[1720324746587,1.13274026,3057.0,3056.9,2.2899]
[1720324746758,2.55999299,3057.0,3056.9,2.2899]
[1720324746962,2.55999299,3057.0,3056.9,2.37168074]
[1720324749896,2.55998545,3057.0,3056.9,2.37168074]
[1720324750061,0.06556452,3057.1,3056.9,2.37168074]
[1720324750262,2.55994085,3057.0,3056.9,2.37168074]
[1720324753096,1.4272564,3057.0,3056.9,2.37168074]
[1720324753286,2.55999957,3057.0,3056.9,2.37168074]
[1720324754686,4.99569957,3057.0,3056.9,2.37168074]
[1720324755186,2.55999957,3057.0,3056.9,2.37168074]
[1720324756320,1.42726448,3057.0,3056.9,2.37168074]
[1720324756622,2.56001412,3057.0,3056.9,2.37168074]
[1720324756785,5.40572482,3057.0,3056.9,2.37168074]
[1720324757079,2.56001412,3057.0,3056.9,2.37168074]
[1720324757721,5.40572899,3057.0,3056.9,2.37168074]
[1720324758224,2.56001412,3057.0,3056.9,2.37168074]
[1720324758601,5.40571658,3057.0,3056.9,2.37168074]
[1720324758805,5.4712811,3057.0,3056.9,2.37168074]
[1720324759228,2.62557864,3057.0,3056.9,2.37168074]
[1720324759502,0.06556452,3057.0,3056.9,2.37168074]
[1720324759700,4.33852763,3057.0,3056.9,2.37168074]
[1720324759904,2.9112641,3057.0,3056.9,2.37168074]
[1720324760107,5.47130915,3057.0,3056.9,2.37168074]
[1720324761228,2.62560957,3057.0,3056.9,2.37168074]
[1720324761427,2.56004505,3057.0,3056.9,2.37168074]
[1720324762938,2.55987791,3057.0,3056.9,2.37168074]
[1720324765104,5.40544052,3057.0,3056.9,0.08178074]
[1720324765302,9.60847587,3057.0,3056.9,0.08178074]
[1720324765602,9.60847587,3057.0,3056.8,2.28996]
[1720324765802,2.55987791,3056.9,3056.8,2.28996]
[1720324766002,2.06219802,3057.0,3056.9,0.08178661]
[1720324766201,4.62216696,3057.0,3056.8,2.37178422]
[1720324766432,2.55996894,3056.9,3056.8,2.28996]
[1720324767570,5.40567621,3056.9,3056.8,2.28996]
[1720324767870,2.55996894,3056.9,3056.8,2.28996]
[1720324769233,1.42724627,3056.9,3056.8,2.28996]
[1720324769435,2.5599814,3056.9,3056.8,2.28996]
[1720324769659,1.42724627,3056.9,3056.8,2.28996]
[1720324769868,2.55999058,3056.9,3056.8,2.28996]
[1720324770586,4.2788395,3056.9,3056.8,2.28996]
[1720324772666,2.12814577,3057.2,3056.9,2.28983]
[1720324772836,2.62534189,3057.1,3056.9,2.28983]
[1720324773168,2.55977737,3057.0,3056.9,2.28983]
[1720324773467,2.55977737,3057.0,3056.9,4.57973]
[1720324773768,4.27856226,3057.0,3056.9,6.96583]
[1720324775727,0.06556452,3057.4,3057.2,2.28967]
[1720324775968,8.60028163,3057.3,3057.2,2.28967]
[1720324776275,10.74089906,3057.3,3057.2,2.28967]
[1720324779043,6.04060154,3057.3,3057.2,2.28967]
[1720324779348,10.80643182,3057.3,3057.2,2.28967]
[1720324779530,9.6738091,3057.3,3057.2,2.28967]
[1720324779735,10.80640098,3057.3,3057.2,2.28967]
[1720324780456,10.8064957,3057.3,3057.2,2.28967]
[1720324780970,9.94580504,3057.3,3057.0,2.28977]
[1720324781169,9.67385263,3057.2,3057.0,2.28977]
[1720324781372,5.40504336,3057.1,3057.0,2.28977]
[1720324782079,5.40504336,3057.1,3056.9,2.28983]
[1720324782080,12.00176967,3057.1,3056.9,2.28983]
[1720324782251,5.40504336,3057.0,3056.9,2.28983]
[1720324782457,5.47084581,3057.0,3056.9,2.28983]
[1720324782639,7.6116965,3057.0,3056.9,2.28983]
[1720324782845,5.47084581,3057.0,3056.9,2.28983]
[1720324784987,7.61172532,3057.0,3056.9,2.28983]
[1720324785476,5.47086821,3057.0,3056.9,2.28983]
[1720324785691,2.91089865,3057.0,3056.9,2.28983]
[1720324785858,5.47085102,3057.0,3056.7,5.29001]
[1720324786057,1.71890198,3056.8,3056.7,5.29001]
[1720324786254,4.27885435,3056.8,3056.7,5.29001]
[1720324788843,1.01956452,3057.0,3056.7,2.29001]
[1720324789076,2.56000842,3056.9,3056.7,2.29001]
[1720324789286,2.56000842,3056.8,3056.7,2.29001]
[1720324789480,2.560068,3056.8,3056.7,2.29001]
[1720324790379,2.56010353,3056.8,3056.7,2.29001]
[1720324791282,2.56010353,3056.8,3056.7,2.37185814]
[1720324792092,2.62566805,3056.8,3056.7,0.08184814]
[1720324792274,0.06556452,3056.8,3056.7,0.08184814]
[1720324792474,1.13278828,3056.8,3056.6,2.29005]
[1720324792679,1.42731323,3056.8,3056.7,0.08189698]
[1720324792894,2.56010712,3056.8,3056.7,0.08189698]
[1720324793083,2.56010712,3056.8,3056.6,2.29005]
[1720324793263,2.1282568,3056.9,3056.7,0.08189698]
[1720324793595,2.5601132,3056.8,3056.6,2.29005]
[1720324793757,2.5601132,3056.7,3056.6,2.29005]
[1720324795558,2.1282568,3056.9,3056.6,2.29005]
[1720324795559,0.06556452,3056.9,3056.6,2.29005]
[1720324795773,2.5600827,3056.8,3056.6,2.29005]
[1720324795957,2.56008226,3056.7,3056.6,2.29005]
[1720324796597,4.2787082,3056.7,3056.6,2.29005]
[1720324796907,4.2787083,3056.7,3056.6,2.29005]
[1720324797061,2.56008226,3056.7,3056.6,2.29005]
[1720324797460,4.27865799,3056.7,3056.6,2.29005]
[1720324798761,1.13277976,3056.7,3056.6,2.29005]
[1720324798958,2.12776623,3057.0,3056.7,2.29003]
[1720324799203,7.5467174,3056.9,3056.7,2.29003]
[1720324799403,2.56007926,3056.8,3056.7,2.29003]
[1720324799765,4.27849903,3056.8,3056.7,4.56713]
[1720324799962,4.27849903,3056.8,3056.7,6.85718]
[1720324800204,4.27849903,3056.8,3056.7,7.542898]
[1720324800499,4.27840257,3056.8,3056.7,7.542898]
[1720324801188,4.27840257,3056.8,3056.7,6.85718]
[1720324801502,2.06206094,3057.1,3056.9,2.28985]
[1720324801699,9.60856203,3057.0,3056.9,2.28985]
[1720324801999,2.3676,3056.9,3056.7,2.29003]
[1720324802199,2.62554087,3056.8,3056.7,2.29003]
[1720324803067,3.42646105,3056.8,3056.5,2.29018]
[1720324803268,0.954,3056.6,3056.3,2.29032]
[1720324803494,1.71857423,3056.4,3056.3,2.29032]
[1720324803699,4.27855058,3056.4,3056.3,2.29032]
[1720324804070,2.55997635,3056.4,3056.3,4.56742]
[1720324804303,2.80198529,3056.4,3056.3,4.56742]
[1720324804601,0.06556452,3056.7,3056.5,2.29019]
[1720324804908,2.56020733,3056.6,3056.5,2.29019]
[1720324805777,3.9346331,3056.6,3056.5,5.266151]
[1720324806074,3.9346331,3056.6,3056.5,8.266151]
[1720324806075,1.42719594,3056.6,3056.5,8.266151]
[1720324806274,1.71804527,3056.8,3056.7,2.29005]
[1720324806502,4.27799399,3056.8,3056.7,2.29005]
[1720324807504,1.42722805,3056.8,3056.7,2.29005]
[1720324807679,2.850718,3056.8,3056.7,2.29005]
[1720324808000,0.06556452,3057.0,3056.8,2.28995]
[1720324808202,2.5599962,3056.9,3056.8,2.28995]
[1720324809113,4.27794407,3056.9,3056.8,2.28995]
[1720324809280,4.27778706,3056.9,3056.8,2.28995]
[1720324809600,4.2778197,3056.9,3056.8,2.28995]
[1720324810015,2.55988503,3056.9,3056.6,2.29012]
[1720324810175,1.71799125,3056.7,3056.6,3.0]
[1720324810508,2.3844,3056.6,3056.1,2.2905]
[1720324810845,2.3844,3056.6,3056.0,2.29057]
[1720324810846,1.37455113,3056.2,3056.0,2.29057]
[1720324811012,2.56041613,3056.1,3056.0,2.29057]
[1720324811178,4.27860505,3056.1,3056.0,2.29057]
[1720324811373,2.56041613,3056.1,3056.0,2.29057]
[1720324811568,4.27860505,3056.1,3056.0,2.29057]
[1720324812312,2.56041613,3056.1,3056.0,2.29057]
[1720324812521,3.93434618,3056.1,3056.0,2.29057]
[1720324812908,1.37393005,3056.2,3056.1,2.2905]
[1720324813102,3.93432898,3056.2,3056.1,2.2905]
[1720324813330,2.56039893,3056.2,3056.1,2.2905]
[1720324813801,0.06556452,3056.5,3056.1,2.2905]
[1720324814131,1.71703762,3056.3,3056.1,2.2905]
[1720324814340,2.56051212,3056.2,3056.1,2.2905]
[1720324814493,2.62607664,3056.2,3056.1,2.2905]
[1720324814702,3.99948277,3056.2,3056.1,2.2905]
[1720324815100,0.6866073,3056.2,3056.1,7.796515]
[1720324815329,1.02995272,3056.3,3056.1,7.796515]
[1720324815330,1.02995272,3056.3,3056.2,2.29042]
[1720324815549,1.42742997,3056.3,3056.2,2.29042]
[1720324815843,3.93373693,3056.3,3056.2,2.36713016]
[1720324816045,2.5603308,3056.3,3056.2,2.36713016]
[1720324816341,4.27736842,3056.3,3056.2,2.36713016]
[1720324816537,2.5603308,3056.3,3056.2,2.36713016]
[1720324817159,4.27691066,3056.3,3056.2,2.36713016]
[1720324817357,3.93359989,3056.3,3056.2,2.36713016]
[1720324817559,0.06556452,3056.4,3056.2,2.36713016]
[1720324817734,3.93338357,3056.3,3056.2,2.36713016]
[1720324818725,3.93339465,3056.3,3056.2,2.36713016]
[1720324820326,2.80041104,3056.3,3056.2,2.36713016]
[1720324820518,3.93335571,3056.3,3056.2,2.36713016]
[1720324823561,3.93330207,3056.3,3056.2,2.36713016]
[1720324823736,1.37290075,3056.4,3056.3,4.5807]
[1720324823935,3.93312796,3056.4,3056.3,2.29035]
[1720324824173,3.93312796,3056.4,3056.3,4.65737253]
[1720324824532,3.93312796,3056.4,3056.3,2.36702253]
[1720324825476,6.59415302,3056.4,3056.3,0.07667253]
[1720324825770,5.27130453,3056.4,3056.1,2.29045]
[1720324825974,2.71107732,3056.4,3056.3,0.07667253]
[1720324826161,5.27163251,3056.4,3056.2,0.07677823]
[1720324826335,4.5482284,3056.3,3056.1,2.29045]
[1720324826542,4.34273031,3056.2,3056.1,2.29045]
[1720324826839,4.34276246,3056.2,3056.0,2.29055]
[1720324827060,3.93387664,3056.1,3056.0,2.29055]
[1720324827268,2.80087485,3056.1,3056.0,2.29055]
[1720324828586,2.80086686,3056.1,3056.0,2.29055]
[1720324829451,1.42757906,3056.1,3056.0,2.29055]
[1720324829653,1.3732878,3056.2,3056.1,2.2905]
[1720324829903,2.50624265,3056.2,3056.1,7.812805]
[1720324830038,2.16275767,3056.2,3056.1,7.812805]
[1720324830242,1.02980282,3056.2,3056.1,7.812805]
[1720324830860,1.02980282,3056.3,3056.2,4.58084]
[1720324831151,1.3732878,3056.4,3056.3,2.29035]
[1720324831354,3.93359319,3056.4,3056.3,2.29035]
[1720324831776,2.56030539,3056.4,3056.3,2.29035]
[1720324831982,3.93352041,3056.4,3056.3,2.29035]
[1720324832342,2.56030539,3056.4,3056.3,2.29035]
[1720324832763,4.27664343,3056.4,3056.3,2.29035]
[1720324833082,0.06556452,3056.5,3056.2,2.29042]
[1720324833083,0.06556452,3056.5,3056.4,2.29027]
[1720324833381,2.56039394,3056.5,3056.4,2.29027]
[1720324833567,3.09455224,3056.5,3056.2,2.29042]
[1720324833878,1.71676968,3056.3,3056.2,2.29042]
[1720324834181,4.34272814,3056.3,3056.2,2.29042]
[1720324836293,0.06556452,3056.3,3056.2,2.29042]
[1720324836448,4.27733694,3056.3,3056.2,2.29042]
[1720324836854,4.27732703,3056.3,3056.2,2.29042]
[1720324837299,3.93393682,3056.3,3056.2,5.038938]
[1720324837454,1.030057,3056.3,3056.2,7.376338]
[1720324838390,1.030057,3056.3,3056.2,7.45325432]
[1720324839666,0.06556452,3056.8,3056.6,2.29011]
[1720324839866,3.01396844,3056.7,3056.6,2.29011]
[1720324840065,1.88116007,3056.7,3056.6,2.29011]
[1720324840288,3.01400284,3056.7,3056.6,2.29011]
[1720324842098,5.85996977,3056.7,3056.4,2.29026]
[1720324842393,2.62576149,3056.6,3056.4,2.29026]
[1720324842600,2.56019697,3056.5,3056.4,2.29026]
[1720324842757,4.27732564,3056.5,3056.4,2.29026]
[1720324842956,3.1445699,3056.5,3056.4,2.29026]
[1720324843270,4.27745117,3056.5,3056.4,2.29026]
[1720324843680,4.96319007,3056.5,3056.4,2.29026]
[1720324843868,5.65835058,3056.5,3056.0,2.29052]
[1720324844083,1.37383024,3056.2,3056.1,2.2905]
[1720324844284,2.56031168,3056.2,3056.1,2.2905]
[1720324844899,4.343164,3056.2,3056.1,2.2905]
[1720324845399,4.7774804,3056.2,3055.9,12.63059]
[1720324845692,2.91573359,3056.2,3056.0,2.29057]
[1720324845992,4.34346627,3056.1,3056.0,2.29057]
[1720324846168,4.27790175,3056.1,3056.0,2.29057]
[1720324848385,3.14488673,3056.1,3056.0,2.29057]
[1720324849094,5.50708673,3056.1,3056.0,2.29057]
[1720324849287,6.06435186,3056.1,3056.0,2.29057]
[1720324849877,4.63675293,3056.1,3056.0,2.29057]
[1720324850185,2.91946513,3056.1,3056.0,2.29057]
[1720324850512,2.3622,3056.1,3055.8,2.2907]
[1720324850676,0.06556452,3056.0,3055.8,2.2907]
[1720324853411,0.06556452,3056.0,3055.9,0.07707979]
[1720324857830,1.02056452,3056.0,3055.9,0.07707979]
[1720324858182,3.44746452,3056.0,3055.4,2.291]
[1720324858381,3.3819,3055.6,3055.2,2.29115]
[1720324858613,0.955,3055.4,3055.2,2.29115]
[1720324860807,0.955,3055.4,3055.1,3.0]
[1720324860998,0.06556452,3055.3,3055.0,2.2913]
[1720324862117,0.955,3055.2,3055.0,2.2913]
[1720324862730,0.06556452,3055.5,3055.0,0.758275]
[1720324862929,0.06556452,3055.8,3055.4,2.29102]
[1720324863086,1.02056452,3055.8,3055.4,2.29102]
[1720324863287,0.06556452,3055.7,3055.4,2.29102]
[1720324864592,1.02888922,3055.5,3055.4,2.29102]
[1720324864828,1.02890116,3055.5,3055.4,2.29102]
[1720324865513,1.02890116,3055.5,3055.4,2.36842033]
[1720324866735,0.06556452,3055.7,3055.6,2.29087]
[1720324866736,1.02890116,3055.7,3055.6,2.29087]
[1720324866890,1.02890116,3055.7,3055.6,2.36818919]
[1720324867088,1.02861896,3055.7,3055.6,2.36818919]
[1720324867924,1.02861896,3055.8,3055.6,2.36818919]
[1720324868124,1.02861896,3055.7,3055.6,2.36818919]
[1720324869189,0.06556452,3055.7,3055.6,0.07731919]
[1720324869391,3.18062824,3055.7,3055.6,0.07731919]
[1720324869692,3.18062824,3055.7,3055.4,2.29102]
[1720324869888,1.02850864,3055.5,3055.4,2.29102]
[1720324870306,1.09407316,3055.5,3055.4,2.29102]
[1720324870499,1.02850864,3055.5,3055.4,2.29102]
[1720324870809,1.02850963,3055.5,3055.4,2.29102]
[1720324871535,1.02850963,3055.5,3055.2,2.29116]
[1720324871536,4.17909079,3055.5,3055.2,2.29116]
[1720324871694,1.02844059,3055.3,3055.2,2.29116]
[1720324873438,1.13330528,3055.3,3055.2,2.29116]
[1720324873623,0.68544901,3055.4,3055.3,2.2911]
[1720324874136,2.16169727,3055.4,3055.3,2.2911]
[1720324877110,2.16132613,3055.4,3055.3,2.2911]
[1720324877297,1.13332946,3055.4,3055.3,2.2911]
[1720324877498,1.43623487,3055.5,3055.3,2.2911]
[1720324877692,1.13333116,3055.4,3055.3,2.2911]
[1720324879039,1.81861197,3055.4,3055.3,2.2911]
[1720324880259,1.13333116,3055.4,3055.3,2.2911]
[1720324880430,0.06556452,3055.6,3055.4,2.29102]
[1720324880625,2.16125834,3055.5,3055.4,2.29102]
[1720324881156,2.16126654,3055.5,3055.4,2.29102]
[1720324881351,1.13327769,3055.5,3055.4,2.29102]
[1720324883556,1.13327769,3055.5,3055.4,2.36854486]
[1720324883917,1.13328355,3055.5,3055.4,2.36854486]
[1720324884360,2.50393535,3055.5,3055.4,2.36854486]
[1720324884960,3.93185661,3055.5,3055.4,2.36854486]
[1720324886660,4.27504084,3055.5,3055.4,0.07752486]
[1720324886964,4.27504084,3055.5,3055.2,2.29115]
[1720324886965,3.45824053,3055.5,3055.2,2.29115]
[1720324887285,5.29727409,3055.4,3055.3,0.07756252]
[1720324887577,2.15389693,3055.4,3055.3,0.07756252]
[1720324887728,6.43122995,3055.4,3055.3,0.07756252]
[1720324887928,6.36566543,3055.4,3055.3,0.07756252]
[1720324888163,7.00878842,3055.4,3055.3,0.07756252]
[1720324888360,7.62558796,3055.4,3055.3,0.07756252]
[1720324888572,7.62558796,3055.4,3055.1,2.29123]
[1720324888866,4.3434983,3055.3,3055.2,0.07760018]
[1720324889431,2.62689708,3055.3,3055.2,0.07760018]
[1720324890382,0.06556452,3055.3,3055.2,0.07760018]
[1720324890532,2.62698372,3055.3,3055.2,0.07760018]
[1720324891025,6.44958056,3055.3,3055.2,0.07760018]
[1720324891666,8.51123062,3055.3,3055.2,0.07760018]
[1720324893473,6.44958056,3055.3,3055.2,0.07760018]
[1720324893678,3.88816136,3055.3,3055.2,0.07760018]
[1720324893847,3.6023019,3055.3,3055.2,0.07760018]
[1720324894048,6.44959631,3055.3,3055.2,0.07760018]
[1720324895032,3.6023019,3055.3,3055.2,0.07760018]
[1720324896455,6.44958378,3055.3,3055.2,0.07760018]
[1720324896882,3.88813532,3055.3,3055.2,0.07760018]
[1720324897081,6.4495939,3055.3,3055.0,2.29132]
[1720324897315,0.06556452,3055.3,3055.2,0.07762548]
[1720324897570,2.62702495,3055.3,3055.2,0.07762548]
[1720324897739,2.62702495,3055.3,3055.0,2.29132]
[1720324897939,1.71771847,3055.1,3055.0,2.29132]
[1720324898140,4.2791789,3055.1,3055.0,2.29132]
[1720324898350,4.2791789,3055.1,3055.0,2.3690208]
[1720324900087,3.93555605,3055.1,3055.0,2.3690208]
[1720324900242,2.80210698,3055.1,3055.0,2.3690208]
[1720324900442,2.50743239,3055.1,3055.0,2.3690208]
[1720324900639,2.56134656,3055.1,3055.0,2.3690208]
[1720324901376,4.27898309,3055.1,3055.0,2.3690208]
[1720324903481,1.02056452,3055.3,3055.0,2.3690208]
[1720324903685,1.71866046,3055.1,3055.0,2.3690208]
[1720324903856,4.28007782,3055.1,3055.0,2.3690208]
[1720324904050,6.60587782,3055.1,3055.0,2.3690208]
[1720324904251,2.56141736,3055.1,3055.0,2.3690208]
[1720324904451,1.13337248,3055.1,3055.0,2.3690208]
[1720324904649,2.56143422,3055.1,3055.0,2.3690208]
[1720324906898,4.73198821,3055.6,3055.1,2.29125]
[1720324907092,1.71861971,3055.2,3055.1,2.29125]
[1720324907256,0.06556452,3055.3,3055.2,0.07762741]
[1720324907461,1.19890161,3055.3,3055.1,2.36891507]
[1720324907716,1.19890161,3055.3,3055.2,0.07762741]
[1720324907879,1.19893497,3055.3,3055.2,0.07762741]
[1720324908279,4.04619608,3055.3,3055.2,0.07762741]
[1720324909677,6.04305008,3055.3,3055.2,0.07762741]
[1720324910003,2.84726123,3055.3,3055.2,0.07762741]
[1720324910204,3.57607615,3055.3,3055.2,0.07762741]
[1720324910358,6.42333738,3055.3,3055.2,0.07762741]
[1720324910564,6.4889019,3055.3,3055.2,0.07762741]
[1720324912497,6.42333738,3055.3,3055.2,0.07762741]
[1720324912684,6.42333738,3055.3,3055.1,2.29125]
[1720324912685,6.4889019,3055.3,3055.1,2.29125]
[1720324912891,2.5082651,3055.3,3055.2,0.07762741]
[1720324913087,3.64164804,3055.3,3055.2,0.07762741]
[1720324913391,6.48926017,3055.3,3055.2,0.07762741]
[1720324914676,5.35649836,3055.3,3055.2,0.07762741]
[1720324914899,6.48986482,3055.3,3055.2,0.07762741]
[1720324915914,6.48986482,3055.3,3055.1,2.29125]
[1720324916117,2.12897963,3055.3,3055.2,0.07762741]
[1720324916300,3.26235715,3055.3,3055.2,0.07762741]
[1720324916822,0.06556452,3055.3,3055.2,0.07762741]
[1720324916977,4.04621781,3055.3,3055.2,0.07762741]
[1720324917177,2.91284298,3055.3,3055.1,2.29125]
[1720324917394,6.04430705,3055.2,3054.9,2.29138]
[1720324917731,0.955,3055.0,3054.8,2.29145]
[1720324917937,2.85326584,3054.9,3054.8,2.29145]
[1720324920137,2.8532589,3054.9,3054.8,2.29145]
[1720324920442,1.13341311,3054.9,3054.8,2.29145]
[1720324921411,1.13341311,3054.9,3054.4,4.67364]
[1720324921736,1.72000088,3054.6,3054.5,5.29169]
[1720324921937,2.85341399,3054.6,3054.5,5.29169]
[1720324922324,0.06556452,3054.7,3054.5,3.0]
[1720324922625,2.85341348,3054.6,3054.5,2.2917]
[1720324922793,2.85341348,3054.6,3054.5,5.2917]
[1720324923499,1.13355775,3054.6,3054.5,5.2917]
[1720324924033,1.13355775,3054.6,3054.5,2.2917]
[1720324924233,2.85341348,3054.6,3054.5,2.2917]
[1720324925033,2.85130426,3054.6,3054.5,2.2917]
[1720324925250,1.13144853,3054.6,3054.5,2.2917]
[1720324925628,0.06556452,3054.7,3054.6,2.29162]
[1720324925828,1.71916769,3054.7,3054.6,2.29162]
[1720324926169,0.955,3054.8,3054.6,2.29162]
[1720324926170,1.02056452,3054.8,3054.6,2.29162]
[1720324926443,0.06556452,3054.7,3054.6,2.29162]
[1720324927816,0.37392103,3054.7,3054.4,2.29174]
[1720324928020,0.37392103,3054.7,3053.8,2.29216]
[1720324928021,0.955,3054.5,3053.8,2.29216]
[1720324928365,0.955,3054.5,3053.7,2.29227]
[1720324928366,2.2739,3054.2,3053.9,0.07574984]
[1720324928651,0.955,3054.0,3053.5,2.29245]
[1720324928846,1.37480175,3053.7,3053.5,2.29245]
[1720324929056,1.71850219,3053.6,3053.3,2.29258]
[1720324929211,1.37494311,3053.4,3053.3,2.29258]
[1720324929411,1.03025804,3053.4,3053.3,2.29258]
[1720324930133,1.03025804,3053.5,3053.4,2.29252]
[1720324930534,1.37494311,3053.7,3053.5,2.29245]
[1720324931050,1.44050763,3053.7,3053.5,2.29245]
[1720324931461,1.02918176,3053.6,3053.5,2.29245]
[1720324931659,0.68610501,3053.6,3053.5,6.9579]
[1720324932644,0.68610501,3053.7,3053.6,2.29237]